lending/lending_fUSD_20241120
["ID","MTS","AMOUNT","RATE_DAILY","PERIOD"]
[342777916,1732140669803,-655.09,0.00055068,120]
[342777917,1732140669812,-500.0,0.00055068,120]
[342777918,1732140669821,-500.0,0.00055068,120]
[342777919,1732140669831,-482.4806088,0.00055068,120]
[342777920,1732140669841,-1047.78,0.00055068,120]
[342777921,1732140669851,-500.0,0.00055068,120]
[342777922,1732140669861,-349.533809,0.00055068,120]
[342777923,1732140669871,-208.735244,0.00055068,120]
[342777924,1732140669883,-1376.36,0.00055068,120]
[342777925,1732140669892,-758.47,0.00055068,120]
[342777926,1732140669901,-500.0,0.00055068,120]
[342777927,1732140669911,-349.533809,0.00055068,120]
[342777928,1732140669920,-1218.68,0.00055068,120]
[342777929,1732140669930,-500.0,0.00055068,120]
[342777930,1732140669939,-156.0972143,0.00055068,2]
[342777931,1732140669948,-1031.21,0.00055068,120]
[342777932,1732140669957,-500.0,0.00055068,120]
[342777933,1732140669967,-746.97,0.00055068,120]
[342777934,1732140669976,-500.0,0.00055068,120]
[342777935,1732140669985,-500.0,0.00055068,120]
[342777936,1732140669995,-500.0,0.00055068,120]
[342777937,1732140670004,-1956.13,0.00055068,120]
[342777938,1732140670013,-1530.02,0.00055068,120]
[342777939,1732140670022,-859.85,0.00055068,120]
[342777940,1732140670032,-626.84,0.00055068,120]
[342777941,1732140670041,-500.0,0.00055068,120]
[342777942,1732140670050,-925.63,0.00055068,120]
[342777943,1732140670059,-500.0,0.00055068,120]
[342777944,1732140670070,-1089.2,0.00055068,120]
[342777945,1732140670080,-500.0,0.00055068,120]
[342777946,1732140670090,-500.0,0.00055068,120]
[342777947,1732140670099,-500.0,0.00055068,120]
[342777948,1732140670109,-746.22,0.00055068,120]
[342777949,1732140670122,-500.0,0.00055068,120]
[342777950,1732140670133,-500.0,0.00055068,120]
[342777951,1732140670142,-500.0,0.00055068,120]
[342777952,1732140670151,-1753.04,0.00055068,120]
[342777953,1732140670160,-500.0,0.00055068,120]
[342777954,1732140670169,-1615.28,0.00055068,120]
[342777955,1732140670179,-500.0,0.00055068,120]
[342777956,1732140670188,-750.0,0.00055068,120]
[342777957,1732140670197,-500.0,0.00055068,120]
[342777958,1732140670207,-2808.16,0.00055068,120]
[342777959,1732140670217,-500.0,0.00055068,120]
[342777960,1732140670228,-628.55,0.00055068,120]
[342777961,1732140670238,-500.0,0.00055068,120]
[342777962,1732140670247,-500.0,0.00055068,2]
[342777963,1732140670256,-2720.22,0.00055068,120]
[342777964,1732140670266,-151.0,0.00055068,120]
[342777965,1732140670275,-1040.43,0.00055068,120]
[342777966,1732140670286,-679.38,0.00055068,120]
[342777967,1732140670296,-501.90045047,0.00055068,120]
[342777968,1732140670306,-500.0,0.00055068,120]
[342777969,1732140670316,-500.0,0.00055068,120]
[342777970,1732140670326,-1140.69,0.00055068,120]
[342777971,1732140670336,-500.0,0.00055068,120]
[342777972,1732140670345,-500.0,0.00055068,120]
[342777973,1732140670355,-579.85,0.00055068,120]
[342777974,1732140670364,-1233.54,0.00055068,120]
[342777975,1732140670376,-500.16997945,0.00055068,120]
[342777976,1732140670387,-560.33,0.00055068,120]
[342777977,1732140670396,-500.0,0.00055068,120]
[342777978,1732140670406,-1595.79,0.00055068,120]
[342777979,1732140670415,-500.0,0.00055068,120]
[342777980,1732140670424,-1241.7,0.00055068,120]
[342777981,1732140670433,-673.6,0.00055068,120]
[342777982,1732140670444,-500.0,0.00055068,120]
[342777983,1732140670454,-500.0,0.00055068,120]
[342777984,1732140670464,-5800.0,0.00055068,14]
[342777985,1732140670474,-500.0,0.00055068,120]
[342777986,1732140670485,-690.2,0.00055068,120]
[342777987,1732140670495,-500.0,0.00055068,120]
[342777988,1732140670505,-501.22977385,0.00055068,120]
[342777989,1732140670514,-500.0,0.00055068,120]
[342777990,1732140670523,-500.0,0.00055068,120]
[342777991,1732140670533,-614.35,0.00055068,120]
[342777992,1732140670542,-500.0,0.00055068,120]
[342777993,1732140670552,-500.0,0.00055068,120]
[342777994,1732140670562,-500.0,0.00055068,120]
[342777995,1732140670572,-1420.27,0.00055068,120]
[342777996,1732140670582,-500.0,0.00055068,120]
[342777997,1732140670592,-500.0,0.00055068,120]
[342777998,1732140670601,-500.0,0.00055068,120]
[342777999,1732140670612,-566.22272278,0.00055068,120]
[342778000,1732140670621,-500.0,0.00055068,120]
[342778001,1732140670632,-151.0,0.00055068,120]
[342778002,1732140670641,-500.0,0.00055068,120]
[342778003,1732140670651,-164.42462399,0.00055068,120]
[342778004,1732140670660,-500.0,0.00055068,120]
[342778005,1732140670669,-500.0,0.00055068,120]
[342778006,1732140670679,-500.0,0.00055068,120]
[342778007,1732140670688,-500.0,0.00055068,120]
[342778008,1732140670697,-500.0,0.00055068,120]
[342778009,1732140670706,-500.0,0.00055068,120]
[342778010,1732140670716,-500.0,0.00055068,120]
[342778011,1732140670724,-500.0,0.00055068,120]
[342778012,1732140670733,-1747.91,0.00055068,120]
[342778013,1732140670743,-500.0,0.00055068,120]
[342778014,1732140670751,-500.0,0.00055068,120]
[342778015,1732140670761,-500.0,0.00055068,120]
[342778016,1732140670770,-326.10477,0.00055068,120]
[342778017,1732140670779,-500.0,0.00055068,120]
[342778018,1732140670788,-1026.85,0.00055068,120]
[342778019,1732140670797,-500.0,0.00055068,120]
[342778020,1732140670806,-500.0,0.00055068,120]
[342778021,1732140670815,-326.10477,0.00055068,120]
[342778022,1732140670824,-500.0,0.00055068,120]
[342778023,1732140670833,-813.38,0.00055068,120]
[342778024,1732140670842,-500.0,0.00055068,120]
[342778025,1732140670851,-500.0,0.00055068,120]
[342778026,1732140670860,-500.0,0.00055068,120]
[342778027,1732140670869,-500.0,0.00055068,120]
[342778028,1732140670880,-1929.2,0.00055068,120]
[342778029,1732140670889,-1208.59,0.00055068,120]
[342778030,1732140670898,-500.0,0.00055068,120]
[342778031,1732140670907,-500.0,0.00055068,120]
[342778032,1732140670916,-509.94,0.00055068,120]
[342778033,1732140670925,-500.0,0.00055068,120]
[342778034,1732140670935,-547.23,0.00055068,120]
[342778035,1732140670944,-500.0,0.00055068,120]
[342778036,1732140670952,-500.0,0.00055068,120]
[342778037,1732140670962,-500.0,0.00055068,120]
[342778038,1732140670971,-983.72,0.00055068,120]
[342778039,1732140670980,-2243.95,0.00055068,120]
[342778040,1732140670989,-1133.87,0.00055068,120]
[342778041,1732140670998,-500.0,0.00055068,120]
[342778042,1732140671007,-500.0,0.00055068,120]
[342778043,1732140671016,-500.0,0.00055068,120]
[342778044,1732140671025,-500.0,0.00055068,120]
[342778045,1732140671034,-500.0,0.00055068,120]
[342778046,1732140671043,-500.0,0.00055068,120]
[342778047,1732140671052,-500.0,0.00055068,120]
[342778048,1732140671061,-500.0,0.00055068,120]
[342778049,1732140671070,-500.0,0.00055068,120]
[342778050,1732140671079,-505.8791325,0.00055068,120]
[342778051,1732140671088,-500.0,0.00055068,120]
[342778052,1732140671096,-500.0,0.00055068,120]
[342778053,1732140671105,-500.0,0.00055068,120]
[342778054,1732140671115,-500.0,0.00055068,120]
[342778055,1732140671127,-500.0,0.00055068,120]
[342778056,1732140671138,-500.0,0.00055068,120]
[342778057,1732140671147,-837.29,0.00055068,120]
[342778058,1732140671156,-601.65,0.00055068,120]
[342778059,1732140671167,-151.0,0.00055068,120]
[342778060,1732140671177,-151.0,0.00055068,120]
[342778061,1732140671186,-500.0,0.00055068,120]
[342778062,1732140671197,-500.0,0.00055068,120]
[342778063,1732140671206,-500.0,0.00055068,120]
[342778064,1732140671215,-500.0,0.00055068,120]
[342778065,1732140671225,-500.0,0.00055068,120]
[342778066,1732140671234,-500.0,0.00055068,120]
[342778067,1732140671243,-500.0,0.00055068,120]
[342778068,1732140671252,-151.0,0.00055068,120]
[342778069,1732140671262,-508.5622199,0.00055068,120]
[342778070,1732140671271,-1244.02,0.00055068,120]
[342778071,1732140671280,-500.0,0.00055068,120]
[342778072,1732140671289,-500.0,0.00055068,120]
[342778073,1732140671298,-500.0,0.00055068,120]
[342778074,1732140671309,-581.48,0.00055068,120]
[342778075,1732140671318,-500.0,0.00055068,120]
[342778076,1732140671327,-500.0,0.00055068,120]
[342778077,1732140671339,-301.99822068,0.00055068,120]
[342778078,1732140671349,-500.0,0.00055068,120]
[342778079,1732140671359,-912.77,0.00055068,120]
[342778080,1732140671368,-822.59,0.00055068,120]
[342778081,1732140671378,-1640.54,0.00055068,120]
[342778082,1732140671484,-500.0,0.00055068,120]
[342778083,1732140671495,-500.0,0.00055068,120]
[342778084,1732140671505,-500.0,0.00055068,120]
[342778085,1732140671514,-332.04338714,0.00055068,120]
[342778086,1732140671524,-957.41,0.00055068,120]
[342778087,1732140671533,-3305.34,0.00055068,120]
[342778088,1732140671543,-500.0,0.00055068,120]
[342778089,1732140671552,-501.97287568,0.00055068,120]
[342778090,1732140671561,-546.92,0.00055068,120]
[342778091,1732140671570,-500.0,0.00055068,120]
[342778092,1732140671579,-500.0,0.00055068,120]
[342778093,1732140671588,-500.0,0.00055068,120]
[342778094,1732140671599,-1590.28,0.00055068,120]
[342778095,1732140671608,-500.0,0.00055068,120]
[342778096,1732140671618,-500.0,0.00055068,120]
[342778097,1732140671627,-500.0,0.00055068,120]
[342778098,1732140671637,-500.20668371,0.00055068,120]
[342778099,1732140671646,-4503.54,0.00055068,120]
[342778100,1732140671656,-2459.56,0.00055068,120]
[342778101,1732140671665,-500.0,0.00055068,120]
[342778102,1732140671674,-501.37380638,0.00055068,120]
[342778103,1732140671683,-500.0,0.00055068,120]
[342778104,1732140671692,-5054.97,0.00055068,120]
[342778105,1732140671702,-611.02028462,0.00055068,120]
[342778106,1732140671712,-500.0,0.00055068,120]
[342778107,1732140671721,-500.0,0.00055068,120]
[342778108,1732140671731,-500.0,0.00055068,120]
[342778109,1732140671740,-500.0,0.00055068,120]
[342778110,1732140671749,-500.0,0.00055068,120]
[342778111,1732140671759,-500.0,0.00055068,120]
[342778112,1732140671767,-500.0,0.00055068,120]
[342778113,1732140671777,-1237.62,0.00055068,120]
[342778114,1732140671786,-1805.81,0.00055068,120]
[342778115,1732140671795,-1705.69,0.00055068,120]
[342778116,1732140671804,-730.02,0.00055068,120]
[342778117,1732140671813,-500.0,0.00055068,120]
[342778118,1732140671822,-500.0,0.00055068,120]
[342778119,1732140671831,-500.0,0.00055068,120]
[342778120,1732140671840,-368.85476559,0.00055068,120]
[342778121,1732140671849,-556.28,0.00055068,120]
[342778122,1732140671858,-151.0,0.00055068,120]
[342778123,1732140671866,-1293.03,0.00055068,120]
[342778124,1732140671875,-735.83,0.00055068,120]
[342778125,1732140671886,-500.0,0.00055068,120]
[342778126,1732140671894,-500.0,0.00055068,120]
[342778127,1732140671903,-875.45,0.00055068,120]
[342778128,1732140671912,-500.0,0.00055068,120]
[342778129,1732140671922,-500.0,0.00055068,120]
[342778130,1732140671930,-500.0,0.00055068,120]
[342778131,1732140671939,-500.0,0.00055068,120]
[342778132,1732140671948,-2355.16,0.00055068,120]
[342778133,1732140671957,-529.9,0.00055068,120]
[342778134,1732140671966,-500.72122023,0.00055068,120]
[342778135,1732140671975,-1626.59,0.00055068,120]
[342778136,1732140671984,-1065.14,0.00055068,120]
[342778137,1732140671993,-500.0,0.00055068,120]
[342778138,1732140672002,-500.0,0.00055068,120]
[342778139,1732140672011,-500.0,0.00055068,120]
[342778140,1732140672020,-500.0,0.00055068,120]
[342778141,1732140672029,-500.0,0.00055068,120]
[342778142,1732140672038,-1000.0,0.00055068,30]
[342778143,1732140672047,-899.71,0.00055068,120]
[342778144,1732140672055,-1031.07,0.00055068,120]
[342778145,1732140672064,-2139.66,0.00055068,120]
[342778146,1732140672073,-500.27113357,0.00055068,120]
[342778147,1732140672082,-500.0,0.00055068,120]
[342778148,1732140672091,-500.0,0.00055068,120]
[342778149,1732140672100,-500.0,0.00055068,120]
[342778150,1732140672109,-1746.7,0.00055068,120]
[342778151,1732140672120,-500.0,0.00055068,120]
[342778152,1732140672132,-500.0,0.00055068,120]
[342778153,1732140672141,-500.0,0.00055068,120]
[342778154,1732140672150,-320.64664824,0.00055068,120]
[342778155,1732140672159,-2450.69,0.00055068,120]
[342778156,1732140672169,-525.57,0.00055068,120]
[342778157,1732140672179,-1007.82,0.00055068,120]
[342778158,1732140672188,-500.0,0.00055068,120]
[342778159,1732140672201,-500.0,0.00055068,120]
[342778160,1732140672211,-525.94,0.00055068,120]
[342778161,1732140672220,-300.0,0.00055068,120]
[342778162,1732140672231,-430.23436363,0.00055068,120]
[342778163,1732140672240,-500.0,0.00055068,120]
[342778164,1732140672250,-1123.27,0.00055068,120]
[342778165,1732140672259,-500.0,0.00055068,120]
[342778166,1732140672269,-500.0,0.00055068,120]
[342778167,1732140672278,-500.0,0.00055068,120]
[342778168,1732140672287,-500.0,0.00055068,120]
[342778169,1732140672296,-800.11,0.00055068,120]
[342778170,1732140672306,-3332.16,0.00055068,120]
[342778171,1732140672315,-500.0,0.00055068,120]
[342778172,1732140672325,-500.0,0.00055068,120]
[342778173,1732140672334,-500.0,0.00055068,120]
[342778174,1732140672343,-500.0,0.00055068,120]
[342778175,1732140672352,-1393.96,0.00055068,120]
[342778176,1732140672361,-500.0,0.00055068,120]
[342778177,1732140672371,-500.0,0.00055068,120]
[342778178,1732140672380,-967.57,0.00055068,120]
[342778179,1732140672390,-500.0,0.00055068,120]
[342778180,1732140672400,-500.0,0.00055068,120]
[342778181,1732140672409,-500.0,0.00055068,120]
[342778182,1732140672419,-500.0,0.00055068,120]
[342778183,1732140672428,-1357.65,0.00055068,120]
[342778184,1732140672438,-500.0,0.00055068,120]
[342778185,1732140672447,-500.0,0.00055068,120]
[342778186,1732140672457,-500.0,0.00055068,120]
[342778187,1732140672467,-500.0,0.00055068,120]
[342778188,1732140672477,-1642.87,0.00055068,120]
[342778189,1732140672486,-500.0,0.00055068,120]
[342778190,1732140672495,-500.0,0.00055068,120]
[342778191,1732140672504,-157.433039,0.00055068,120]
[342778192,1732140672513,-533.87382484,0.00055068,120]
[342778193,1732140672523,-1717.17,0.00055068,120]
[342778194,1732140672532,-1588.79,0.00055068,90]
[342778195,1732140672542,-1853.26,0.00055068,120]
[342778196,1732140672551,-500.0,0.00055068,120]
[342778197,1732140672560,-500.0,0.00055068,120]
[342778198,1732140672570,-462.79079626,0.00055068,120]
[342778199,1732140672579,-500.0,0.00055068,120]
[342778200,1732140672588,-500.0,0.00055068,120]
[342778201,1732140672598,-500.0,0.00055068,120]
[342778202,1732140672607,-500.0,0.00055068,120]
[342778203,1732140672617,-500.0,0.00055068,120]
[342778204,1732140672626,-500.0,0.00055068,120]
[342778205,1732140672639,-500.0,0.00055068,120]
[342778206,1732140672648,-501.19732064,0.00055068,120]
[342778207,1732140672657,-376.20000061,0.00055068,120]
[342778208,1732140672666,-700.0,0.00055068,120]
[342778209,1732140672675,-500.0,0.00055068,120]
[342778210,1732140672685,-2546.22,0.00055068,120]
[342778211,1732140672695,-539.02666055,0.00055068,120]
[342778212,1732140672704,-500.0,0.00055068,120]
[342778213,1732140672714,-500.0,0.00055068,120]
[342778214,1732140672722,-500.0,0.00055068,120]
[342778215,1732140672732,-500.0,0.00055068,120]
[342778216,1732140672741,-500.0,0.00055068,120]
[342778217,1732140672751,-2834.37,0.00055068,120]
[342778218,1732140672760,-250.0,0.00055068,120]
[342778219,1732140672769,-500.0,0.00055068,120]
[342778220,1732140672778,-1334.03,0.00055068,120]
[342778221,1732140672788,-500.0,0.00055068,120]
[342778222,1732140672797,-500.0,0.00055068,120]
[342778223,1732140672808,-500.0,0.00055068,120]
[342778224,1732140672819,-500.0,0.00055068,120]
[342778225,1732140672828,-500.0,0.00055068,120]
[342778226,1732140672838,-163.0,0.00055068,120]
[342778227,1732140672847,-500.0,0.00055068,120]
[342778228,1732140672856,-2885.23,0.00055068,120]
[342778229,1732140672867,-4453.81,0.00055068,120]
[342778230,1732140672876,-500.0,0.00055068,120]
[342778231,1732140672893,-500.0,0.00055068,120]
[342778232,1732140672902,-500.0,0.00055068,120]
[342778233,1732140672911,-500.0,0.00055068,120]
[342778234,1732140672921,-2241.05,0.00055068,120]
[342778235,1732140672930,-500.0,0.00055068,120]
[342778236,1732140672940,-2217.98,0.00055068,120]
[342778237,1732140672949,-500.0,0.00055068,120]
[342778238,1732140672958,-500.0,0.00055068,16]
[342778239,1732140672967,-500.0,0.00055068,120]
[342778240,1732140672976,-500.0,0.00055068,120]
[342778241,1732140672987,-151.0,0.00055068,120]
[342778242,1732140672997,-500.0,0.00055068,120]
[342778243,1732140673006,-1402.45,0.00055068,60]
[342778244,1732140673015,-500.0,0.00055068,120]
[342778245,1732140673025,-500.0,0.00055068,120]
[342778246,1732140673039,-800.61,0.00055068,120]
[342778247,1732140673048,-500.0,0.00055068,120]
[342778248,1732140673057,-500.0,0.00055068,120]
[342778249,1732140673067,-500.0,0.00055068,120]
[342778250,1732140673077,-708.966244,0.00055068,120]
[342778251,1732140673087,-151.0,0.00055068,120]
[342778252,1732140673097,-932.27,0.00055068,120]
[342778253,1732140673106,-1004.07,0.00055068,120]
[342778254,1732140673115,-500.0,0.00055068,120]
[342778255,1732140673129,-500.0,0.00055068,120]
[342778256,1732140673140,-2000.63,0.00055068,120]
[342778257,1732140673149,-1132.68,0.00055068,120]
[342778258,1732140673159,-500.0,0.00055068,120]
[342778259,1732140673172,-703.55,0.00055068,120]
[342778260,1732140673181,-2241.76,0.00055068,120]
[342778261,1732140673189,-708.966244,0.00055068,120]
[342778262,1732140673200,-500.0,0.00055068,120]
[342778263,1732140673210,-596.11,0.00055068,120]
[342778264,1732140673219,-213.65348809,0.00055068,120]
[342778265,1732140673228,-794.52,0.00055068,120]
[342778266,1732140673237,-500.0,0.00055068,120]
[342778267,1732140673246,-833.99,0.00055068,120]
[342778268,1732140673256,-2777.12,0.00055068,120]
[342778269,1732140673265,-1309.21,0.00055068,120]
[342778270,1732140673274,-1558.24,0.00055068,120]
[342778271,1732140673283,-542.17968723,0.00055068,120]
[342778272,1732140673292,-533.36106696,0.00055068,120]
[342778273,1732140673301,-500.0,0.00055068,120]
[342778274,1732140673311,-500.0,0.00055068,120]
[342778275,1732140673320,-500.0,0.00055068,120]
[342778276,1732140673329,-500.0,0.00055068,120]
[342778277,1732140673339,-500.0,0.00055068,120]
[342778278,1732140673348,-500.0,0.00055068,120]
[342778279,1732140673359,-500.0,0.00055068,120]
[342778280,1732140673368,-500.0,0.00055068,120]
[342778281,1732140673377,-500.08,0.00055068,120]
[342778282,1732140673388,-2539.87,0.00055068,120]
[342778283,1732140673398,-500.0,0.00055068,120]
[342778284,1732140673407,-500.0,0.00055068,60]
[342778285,1732140673416,-500.0,0.00055068,120]
[342778286,1732140673425,-500.0,0.00055068,120]
[342778287,1732140673434,-502.75026568,0.00055068,120]
[342778288,1732140673443,-831.36,0.00055068,120]
[342778289,1732140673452,-502.15511721,0.00055068,120]
[342778290,1732140673462,-500.0,0.00055068,120]
[342778291,1732140673472,-500.0,0.00055068,120]
[342778292,1732140673481,-1229.75,0.00055068,120]
[342778293,1732140673490,-500.0,0.00055068,120]
[342778294,1732140673501,-500.0,0.00055068,120]
[342778295,1732140673515,-1365.28,0.00055068,120]
[342778296,1732140673528,-1743.89,0.00055068,120]
[342778297,1732140673542,-500.0,0.00055068,120]
[342778298,1732140673555,-500.0,0.00055068,120]
[342778299,1732140673564,-500.0,0.00055068,120]
[342778300,1732140673573,-500.0,0.00055068,120]
[342778301,1732140673583,-1290.22,0.00055068,120]
[342778302,1732140673592,-507.82,0.00055068,120]
[342778303,1732140673602,-500.0,0.00055068,120]
[342778304,1732140673611,-501.82943276,0.00055068,120]
[342778305,1732140673620,-500.0,0.00055068,120]
[342778306,1732140673629,-151.0,0.00055068,120]
[342778307,1732140673641,-500.0,0.00055068,120]
[342778308,1732140673650,-3045.72,0.00055068,120]
[342778309,1732140673661,-500.0,0.00055068,120]
[342778310,1732140673671,-298.0,0.00055068,120]
[342778311,1732140673680,-500.0,0.00055068,120]
[342778312,1732140673691,-500.0,0.00055068,120]
[342778313,1732140673701,-500.0,0.00055068,120]
[342778314,1732140673711,-500.0,0.00055068,120]
[342778315,1732140673720,-500.0,0.00055068,120]
[342778316,1732140673728,-500.0,0.00055068,120]
[342778317,1732140673738,-323.433089,0.00055068,120]
[342778318,1732140673748,-501.12334914,0.00055068,120]
[342778319,1732140673758,-916.6,0.00055068,120]
[342778320,1732140673767,-500.0,0.00055068,120]
[342778321,1732140673776,-500.0,0.00055068,120]
[342778322,1732140673785,-610.75,0.00055068,120]
[342778323,1732140673794,-500.0,0.00055068,120]
[342778324,1732140673803,-502.86,0.00055068,120]
[342778325,1732140673813,-1278.95,0.00055068,120]
[342778326,1732140673822,-504.52,0.00055068,120]
[342778327,1732140673831,-323.433089,0.00055068,120]
[342778328,1732140673840,-504.04804805,0.00055068,120]
[342778329,1732140673850,-500.0,0.00055068,120]
[342778330,1732140673859,-500.0,0.00055068,120]
[342778331,1732140673868,-500.0,0.00055068,120]
[342778332,1732140673877,-500.0,0.00055068,120]
[342778333,1732140673888,-702.18,0.00055068,120]
[342778334,1732140673898,-500.0,0.00055068,120]
[342778335,1732140673907,-151.0,0.00055068,120]
[342778336,1732140673917,-3583.6,0.00055068,120]
[342778337,1732140673926,-500.0,0.00055068,120]
[342778338,1732140673937,-1685.95,0.00055068,120]
[342778339,1732140673946,-500.0,0.00055068,120]
[342778340,1732140673956,-500.0,0.00055068,120]
[342778341,1732140673966,-500.0,0.00055068,120]
[342778342,1732140673979,-5689.68,0.00055068,120]
[342778343,1732140673988,-500.0,0.00055068,120]
[342778344,1732140673998,-1343.23,0.00055068,120]
[342778345,1732140674007,-151.0,0.00055068,120]
[342778346,1732140674016,-500.0,0.00055068,120]
[342778347,1732140674025,-500.0,0.00055068,120]
[342778348,1732140674035,-500.0,0.00055068,120]
[342778349,1732140674045,-553.27,0.00055068,120]
[342778350,1732140674054,-500.0,0.00055068,120]
[342778351,1732140674064,-500.0,0.00055068,120]
[342778352,1732140674074,-500.0,0.00055068,120]
[342778353,1732140674083,-500.0,0.00055068,120]
[342778354,1732140674093,-500.0,0.00055068,120]
[342778355,1732140674102,-500.0,0.00055068,120]
[342778356,1732140674112,-500.0,0.00055068,120]
[342778357,1732140674126,-500.0,0.00055068,120]
[342778358,1732140674138,-1250.26,0.00055068,120]
[342778359,1732140674148,-500.0,0.00055068,120]
[342778360,1732140674157,-982.33,0.00055068,120]
[342778361,1732140674167,-500.0,0.00055068,120]
[342778362,1732140674176,-500.0,0.00055068,120]
[342778363,1732140674186,-667.62,0.00055068,120]
[342778364,1732140674196,-177.19178924,0.00055068,120]
[342778365,1732140674206,-515.90940683,0.00055068,120]
[342778366,1732140674216,-500.0,0.00055068,120]
[342778367,1732140674226,-609.95,0.00055068,120]
[342778368,1732140674235,-500.0,0.00055068,120]
[342778369,1732140674245,-500.0,0.00055068,120]
[342778370,1732140674256,-500.0,0.00055068,120]
[342778371,1732140674266,-500.0,0.00055068,120]
[342778372,1732140674275,-500.0,0.00055068,120]
[342778373,1732140674285,-500.0,0.00055068,120]
[342778374,1732140674295,-500.0,0.00055068,120]
[342778375,1732140674305,-808.05,0.00055068,120]
[342778376,1732140674315,-500.0,0.00055068,120]
[342778377,1732140674324,-522.08,0.00055068,120]
[342778378,1732140674335,-1111.01,0.00055068,120]
[342778379,1732140674344,-671.78,0.00055068,120]
[342778380,1732140674354,-500.0,0.00055068,120]
[342778381,1732140674363,-500.0,0.00055068,120]
[342778382,1732140674373,-500.0,0.00055068,120]
[342778383,1732140674383,-1704.12,0.00055068,120]
[342778384,1732140674393,-2102.13,0.00055068,120]
[342778385,1732140674403,-500.0,0.00055068,120]
[342778386,1732140674412,-500.0,0.00055068,120]
[342778387,1732140674422,-500.0,0.00055068,120]
[342778388,1732140674432,-500.0,0.00055068,120]
[342778389,1732140674442,-500.27671038,0.00055068,120]
[342778390,1732140674452,-675.74,0.00055068,120]
[342778391,1732140674462,-500.0,0.00055068,120]
[342778392,1732140674471,-1034.91,0.00055068,120]
[342778393,1732140674481,-628.14013,0.00055068,120]
[342778394,1732140674491,-500.0,0.00055068,120]
[342778395,1732140674500,-907.83,0.00055068,120]
[342778396,1732140674510,-500.0,0.00055068,120]
[342778397,1732140674520,-151.0,0.00055068,120]
[342778398,1732140674530,-500.0,0.00055068,120]
[342778399,1732140674539,-151.0,0.00055068,120]
[342778400,1732140674549,-500.42082205,0.00055068,120]
[342778401,1732140674559,-500.0,0.00055068,120]
[342778402,1732140674569,-628.14013,0.00055068,120]
[342778403,1732140674578,-5007.0,0.00055068,120]
[342778404,1732140674588,-2296.76,0.00055068,20]
[342778405,1732140674597,-500.0,0.00055068,120]
[342778406,1732140674607,-500.0,0.00055068,120]
[342778407,1732140674617,-151.0,0.00055068,120]
[342778408,1732140674628,-500.0,0.00055068,120]
[342778409,1732140674639,-500.0,0.00055068,120]
[342778410,1732140674649,-500.0,0.00055068,120]
[342778411,1732140674659,-500.0,0.00055068,120]
[342778412,1732140674669,-500.0,0.00055068,120]
[342778413,1732140674679,-500.0,0.00055068,120]
[342778414,1732140674688,-500.0,0.00055068,120]
[342778415,1732140674698,-798.21,0.00055068,120]